bitfinex-derivatives/quotes_BTCF0:USTF0_20251209
["timestamp","ask_amount","ask_price","bid_price","bid_amount"]
[1765293783187,0.00122021,90913.0,90912.0,0.3608]
[1765293783988,0.00122021,90913.0,90912.0,0.3618]
[1765293784189,0.00022021,90913.0,90912.0,0.3618]
[1765293784500,0.00122021,90913.0,90912.0,0.3658]
[1765293784696,0.0110008,90904.0,90903.0,0.000165]
[1765293784899,0.3718008,90904.0,90903.0,0.000165]
[1765293785697,0.3608,90904.0,90903.0,0.003165]
[1765293785890,0.0110008,90904.0,90903.0,0.003165]
[1765293786092,0.0120008,90904.0,90903.0,0.009165]
[1765293787000,0.0110012,90901.0,90880.0,0.3608]
[1765293787198,0.3608,90889.0,90880.0,0.3608]
[1765293787405,0.3608,90889.0,90869.0,0.3608]
[1765293787596,0.19432505,90880.0,90869.0,0.3608]
[1765293787803,0.0110043,90876.0,90869.0,0.3608]
[1765293788105,0.000165,90882.0,90869.0,0.3608]
[1765293788305,0.000165,90882.0,90880.0,0.01]
[1765293788493,0.0110036,90881.0,90880.0,0.01]
[1765293788697,0.0110036,90881.0,90869.0,0.3608]
[1765293788898,0.001,90876.0,90869.0,0.3618]
[1765293789500,0.0120043,90876.0,90869.0,0.3618]
[1765293789701,0.0110045,90873.0,90869.0,0.3618]
[1765293789905,0.0120042,90876.0,90869.0,0.3618]
[1765293790099,0.001,90876.0,90871.0,0.0110047]
[1765293790507,0.001,90876.0,90873.0,0.0110044]
[1765293790808,0.002165,90882.0,90881.0,0.0110036]
[1765293791002,0.002165,90882.0,90881.0,0.7326036]
[1765293791601,0.0590036,90901.0,90898.0,0.0110014]
[1765293791803,0.0590036,90903.0,90900.0,0.0110013]
[1765293792002,0.0590036,90905.0,90899.0,0.3718013]
[1765293792200,0.00022021,90913.0,90899.0,0.3718013]
[1765293792201,0.0590036,90903.0,90899.0,0.3608]
[1765293792401,0.00022021,90913.0,90899.0,0.3608]
[1765293792402,0.0590036,90902.0,90900.0,0.0110013]
[1765293792603,0.0590036,90904.0,90902.0,0.0110009]
[1765293792897,0.0590036,90905.0,90902.0,0.0110009]
[1765293793097,0.000165,90910.0,90899.0,0.3608]
[1765293793303,0.000165,90910.0,90909.0,0.3608]
[1765293794508,0.0590036,90924.0,90922.0,0.0109986]
[1765293794806,0.0590036,90929.0,90925.0,0.0109982]
[1765293794997,0.0590036,90930.0,90925.0,0.0109982]
[1765293795204,0.0590036,90930.0,90923.0,0.3608]
[1765293795400,0.0590036,90929.0,90923.0,0.3608]
[1765293795697,0.0590036,90932.0,90929.0,0.0109978]
[1765293795903,0.0590036,90932.0,90931.0,0.3608]
[1765293796102,0.0590036,90933.0,90931.0,0.3608]
[1765293797111,0.000165,90936.0,90935.0,0.010997]
[1765293797309,0.0590036,90952.0,90951.0,0.0109951]
[1765293797510,0.0590036,90964.0,90960.0,0.0109939]
[1765293797714,0.0590036,90970.0,90964.0,0.0109935]
[1765293797902,0.0590036,90979.0,90970.0,0.0109927]
[1765293798205,0.0590036,90984.0,90964.0,0.0109934]
[1765293798407,0.0590036,90977.0,90965.0,0.00016491]
[1765293798598,0.0109931,90968.0,90965.0,0.00016491]
[1765293798800,0.0590036,90971.0,90965.0,0.00016491]
[1765293798998,0.0590036,90974.0,90965.0,0.00016491]
[1765293799311,0.010992,90977.0,90965.0,0.00016491]
[1765293799501,0.0699955,90978.0,90965.0,0.00016491]
[1765293799911,0.008,90971.0,90965.0,0.00216491]
[1765293800310,0.0109928,90970.0,90968.0,0.3608]
[1765293800612,0.008,90971.0,90968.0,0.3608]
[1765293801213,0.0219927,90971.0,90968.0,0.3608]
[1765293801401,0.0139927,90971.0,90968.0,0.3608]
[1765293801801,0.004,90971.0,90965.0,0.00116491]
[1765293802004,0.0109932,90967.0,90965.0,0.00016491]
[1765293802613,0.4109932,90967.0,90965.0,0.00016491]
[1765293803308,0.4179932,90967.0,90965.0,0.00116491]
[1765293803503,0.0179932,90967.0,90965.0,0.00116491]
[1765293804712,0.0109933,90966.0,90965.0,0.00116491]
[1765293805007,0.0109933,90966.0,90957.0,0.3608]
[1765293805008,0.0109943,90958.0,90957.0,0.3608]
[1765293805313,0.0109933,90966.0,90919.0,0.010999]
[1765293805314,0.0109955,90948.0,90919.0,0.010999]
[1765293805508,0.0109979,90929.0,90877.0,0.011004]
[1765293805705,0.0109985,90923.0,90904.0,0.0110008]
[1765293805902,0.13195553,90920.0,90906.0,0.0110005]
[1765293806103,0.13195553,90920.0,90904.0,0.000165]
[1765293806297,0.0111637,90922.0,90904.0,0.000165]
[1765293806502,0.000165,90922.0,90919.0,0.005]
[1765293807010,0.3608,90920.0,90919.0,0.005]
[1765293808005,0.3608,90920.0,90914.0,0.0109995]
[1765293808205,0.3608,90920.0,90904.0,0.000165]
[1765293808206,0.3618,90920.0,90910.0,0.0109999]
[1765293808399,0.3608,90911.0,90910.0,0.0109999]
[1765293808603,0.3608,90911.0,90906.0,0.0140005]
[1765293808800,0.3608,90911.0,90909.0,0.0110002]
[1765293809408,0.3608,90911.0,90910.0,0.002]
[1765293810013,0.3618,90911.0,90909.0,0.0130002]
[1765293810221,0.3618,90911.0,90910.0,0.001]
[1765293811306,0.3608,90911.0,90910.0,0.001]
[1765293811511,0.3618,90911.0,90910.0,0.003]
[1765293812017,0.3608,90911.0,90910.0,0.001]
[1765293812314,0.3618,90911.0,90910.0,0.002]
[1765293812504,0.0110005,90907.0,90904.0,0.000165]
[1765293812711,0.3608,90905.0,90904.0,0.000165]
[1765293813711,0.0110026,90890.0,90877.0,0.3608]
[1765293813919,0.3608,90878.0,90877.0,0.0110041]
[1765293814112,0.3608,90878.0,90876.0,0.00011969]
[1765293814312,0.3608,90878.0,90876.0,0.01112389]
[1765293814607,0.3608,90878.0,90876.0,0.00011969]
[1765293815015,0.3608,90878.0,90877.0,0.0180041]
[1765293815416,0.3608,90878.0,90877.0,0.0110041]
[1765293815608,0.3618,90878.0,90877.0,0.0110041]
[1765293816610,0.001,90878.0,90877.0,0.0110041]
[1765293816818,0.000165,90886.0,90885.0,0.0110031]
[1765293817015,0.3608,90905.0,90896.0,0.0110018]
[1765293817215,0.3608,90905.0,90904.0,0.0110008]
[1765293817420,0.3608,90909.0,90904.0,0.0110008]
[1765293817610,0.3608,90909.0,90908.0,0.0110003]
[1765293818712,0.3618,90909.0,90904.0,0.003]
[1765293819020,0.3618,90909.0,90904.0,0.002]
[1765293819220,0.3618,90909.0,90908.0,0.001]
[1765293819818,0.3618,90909.0,90904.0,0.002]
[1765293820023,0.0110007,90905.0,90904.0,0.002]
[1765293820818,0.0110007,90905.0,90904.0,0.003]
[1765293821215,0.0110007,90905.0,90904.0,0.001]
[1765293821420,0.0110012,90901.0,90899.0,0.000165]
[1765293821611,0.3608,90908.0,90899.0,0.000165]
[1765293821612,0.3608,90900.0,90899.0,0.000165]
[1765293822520,0.3718013,90900.0,90899.0,0.000165]
[1765293822719,0.3608,90900.0,90899.0,0.002165]
[1765293822921,0.3608,90900.0,90876.0,0.00011969]
[1765293822922,0.0110016,90898.0,90876.0,0.00011969]
[1765293823222,0.0110034,90883.0,90876.0,0.00011969]
[1765293823416,0.3608,90877.0,90876.0,0.00011969]
[1765293823718,0.7216,90877.0,90876.0,0.00011969]
[1765293824815,0.7236,90877.0,90876.0,0.00111969]
[1765293825010,0.7236,90877.0,90867.0,0.000165]
[1765293825325,0.0110051,90869.0,90867.0,0.000165]
[1765293825620,0.7216,90868.0,90867.0,0.000165]
[1765293826124,0.7217217,90868.0,90867.0,0.001165]
[1765293827016,0.0110062,90860.0,90842.0,0.0110082]
[1765293827219,0.3608,90850.0,90840.0,0.00110084]
[1765293827423,8.914e-05,90849.0,90840.0,0.01210934]
[1765293827821,8.914e-05,90849.0,90840.0,0.00110084]
[1765293828422,8.914e-05,90849.0,90843.0,0.0110081]
[1765293828618,0.00108914,90849.0,90840.0,0.00910084]
[1765293828822,0.00108914,90849.0,90841.0,0.0110084]
[1765293829123,0.00108914,90849.0,90840.0,0.00910084]
[1765293829124,0.3608,90842.0,90840.0,0.00910084]
[1765293829518,0.3608,90842.0,90840.0,0.00828534]
[1765293829721,0.0110084,90841.0,90840.0,0.00828534]
[1765293830031,0.3608,90842.0,90840.0,0.00828534]
[1765293830524,0.3618,90842.0,90840.0,0.00528534]
[1765293830717,0.3618,90842.0,90841.0,0.003]
[1765293831531,0.3618,90842.0,90840.0,0.00828534]
[1765293832227,0.3618,90842.0,90841.0,0.005]
[1765293832733,0.3618,90842.0,90841.0,0.008]
[1765293833727,0.3618,90842.0,90840.0,0.00028534]
[1765293833728,0.0110084,90841.0,90840.0,0.00028534]
[1765293833918,0.0110085,90840.0,90816.0,0.00012334]
[1765293834119,0.3608,90823.0,90816.0,0.00012334]
[1765293834428,0.36088064,90823.0,90816.0,0.00012334]
[1765293835430,0.36588064,90823.0,90822.0,0.00122021]
[1765293835626,0.36688064,90823.0,90822.0,0.00122021]
[1765293836815,0.36788064,90823.0,90822.0,0.00022021]
[1765293837823,0.36288064,90823.0,90822.0,0.00022021]
[1765293838031,0.36988064,90823.0,90822.0,0.00022021]
[1765293839129,0.0110113,90817.0,90816.0,0.00012334]
[1765293840133,0.0110113,90818.0,90816.0,0.00012334]
[1765293840518,0.001,90817.0,90790.0,0.00110145]
[1765293840733,0.3608,90794.0,90790.0,0.00110145]
[1765293840932,0.3608,90791.0,90790.0,0.01211605]
[1765293841128,0.3608,90800.0,90790.0,0.00110145]
[1765293841425,0.3608,90791.0,90790.0,0.01211605]
[1765293841817,0.36090525,90791.0,90790.0,0.01211605]
[1765293842019,0.00010525,90791.0,90790.0,0.01211605]
[1765293843233,0.00010525,90791.0,90790.0,0.01511605]
[1765293843824,0.36196519,90800.0,90799.0,0.0110135]
[1765293844026,0.3608,90810.0,90809.0,0.0110123]
[1765293844229,0.3608,90821.0,90820.0,0.011011]
[1765293844534,0.3608,90821.0,90810.0,0.0110122]
[1765293844535,0.3608,90821.0,90817.0,0.0110113]
[1765293844827,0.00010609,90820.0,90819.0,0.011011]
[1765293845627,0.36090609,90820.0,90819.0,0.011011]
[1765293845828,0.36090609,90820.0,90810.0,0.00016519]
[1765293846018,0.3608,90811.0,90810.0,0.01117739]
[1765293846217,0.3608,90815.0,90813.0,0.0110117]
[1765293846527,0.3608,90815.0,90810.0,0.01117729]
[1765293846729,0.0110117,90814.0,90810.0,0.00016519]
[1765293846928,0.3608,90814.0,90810.0,0.00016519]
[1765293847129,0.0110118,90813.0,90810.0,0.00016519]
[1765293847626,0.3608,90814.0,90810.0,0.00016519]
[1765293848125,0.3608,90814.0,90811.0,0.0110121]
[1765293848933,0.005,90813.0,90811.0,0.0110121]
[1765293849335,0.005,90813.0,90810.0,0.00016519]
[1765293849521,0.0110119,90812.0,90810.0,0.00016519]
[1765293850829,0.3658,90814.0,90810.0,0.00016519]
[1765293851027,0.005,90812.0,90810.0,0.00016519]
[1765293851228,0.005,90812.0,90811.0,0.0110121]
[1765293853025,0.005,90812.0,90811.0,0.4110121]
[1765293853426,0.3608,90814.0,90811.0,0.4110121]
[1765293853735,0.00010609,90820.0,90819.0,0.0110111]
[1765293854139,0.00010609,90820.0,90819.0,0.4110111]
[1765293854435,0.00010609,90820.0,90819.0,0.42180549]
[1765293855221,0.3608,90830.0,90828.0,0.01101]
[1765293857230,0.00416519,90829.0,90828.0,0.01101]
[1765293857628,0.00416519,90829.0,90828.0,0.01201]
[1765293859640,0.00016519,90829.0,90828.0,0.01201]
[1765293859833,0.00416519,90829.0,90828.0,0.01201]
[1765293860030,0.00416519,90829.0,90825.0,0.0110103]
[1765293860229,0.0110102,90827.0,90811.0,0.0110121]
[1765293860542,0.3608,90822.0,90811.0,0.0110121]
[1765293860729,0.3608,90822.0,90811.0,0.02189979]
[1765293860930,0.3718107,90822.0,90810.0,0.00016519]
[1765293861132,0.3608,90814.0,90811.0,0.0110121]
[1765293861532,0.3718117,90814.0,90810.0,0.00016519]
[1765293861729,0.0110121,90811.0,90810.0,0.00016519]
[1765293861936,0.3718117,90814.0,90810.0,0.00016519]
[1765293862138,0.3608,90814.0,90811.0,0.0110121]
[1765293862333,0.3608,90814.0,90811.0,0.0130121]
[1765293863142,0.3608,90814.0,90811.0,0.002]
[1765293863540,0.3628,90814.0,90811.0,0.0110119]
[1765293863839,0.0110118,90813.0,90811.0,0.002]
[1765293864446,0.06980256,90813.0,90810.0,0.00016519]
[1765293864633,0.06980256,90813.0,90790.0,0.49385698]
[1765293864634,0.0110121,90811.0,90790.0,0.36190145]
[1765293864836,0.3608,90791.0,90790.0,0.00110145]
[1765293866337,0.3608,90791.0,90790.0,0.00610145]
[1765293866742,0.3618,90791.0,90790.0,0.00610145]
[1765293866936,0.3618,90791.0,90790.0,0.00410145]
[1765293869139,0.001,90791.0,90790.0,0.00410145]
[1765293874143,0.3618,90791.0,90790.0,0.00410145]
[1765293874756,0.3618,90791.0,90790.0,0.01511605]
[1765293877546,0.3618,90791.0,90790.0,0.00410145]
[1765293882641,0.3618,90791.0,90781.0,0.00016519]
[1765293882642,0.0110156,90782.0,90781.0,0.00016519]
[1765293882846,0.3718156,90782.0,90781.0,0.00016519]
[1765293883049,0.7216,90782.0,90751.0,0.4108]
[1765293883251,0.3608,90766.0,90760.0,0.0110181]
[1765293883854,0.3608,90766.0,90762.0,0.0110179]
[1765293884158,0.3608,90766.0,90759.0,0.0110183]
[1765293884558,0.3608,90766.0,90751.0,0.05]
[1765293884752,0.7216,90766.0,90751.0,0.05]
[1765293884946,0.7216,90766.0,90765.0,0.00710175]
[1765293885352,0.7236,90766.0,90765.0,0.00710175]
[1765293885762,0.7236,90766.0,90765.0,0.00210175]
[1765293893063,0.3628,90766.0,90765.0,0.00210175]
[1765293893464,0.002,90766.0,90765.0,0.00210175]
[1765293895159,0.00016519,90775.0,90774.0,0.0110165]
[1765293896659,0.3608,90790.0,90789.0,0.0110147]
[1765293896958,0.3608,90807.0,90789.0,0.3608]
[1765293897169,0.3608,90807.0,90804.0,0.0110129]
[1765293897560,0.05879076,90812.0,90797.0,0.3608]
[1765293897561,0.00126634,90815.0,90814.0,0.0110117]
[1765293898962,0.00426634,90815.0,90814.0,0.3718117]
[1765293899854,0.00426634,90815.0,90814.0,0.3608]
[1765293900466,0.00126634,90815.0,90814.0,0.3718117]
[1765293900767,0.00426634,90815.0,90814.0,0.3608]
[1765293900967,0.00526634,90815.0,90814.0,0.3608]
[1765293901170,0.00626634,90815.0,90814.0,0.3608]
[1765293901367,0.00626634,90815.0,90796.0,0.36096519]
[1765293901554,0.0110134,90801.0,90796.0,0.36096519]
[1765293901863,0.0110136,90799.0,90796.0,0.00016519]
[1765293902059,0.3608,90797.0,90796.0,0.00016519]
[1765293903169,0.3638,90797.0,90796.0,0.00016519]
[1765293903555,0.003,90797.0,90796.0,0.01117909]
[1765293903763,0.00526634,90815.0,90811.0,0.011012]
[1765293904062,0.00526634,90815.0,90797.0,0.0110136]
[1765293904264,0.3608,90806.0,90803.0,0.011013]
[1765293904462,0.3608,90806.0,90800.0,0.0110134]
[1765293904770,0.3608,90806.0,90797.0,0.0110137]
[1765293904968,0.3608,90806.0,90796.0,0.00016519]
[1765293904969,0.0110131,90803.0,90796.0,0.00016519]
[1765293905174,0.0110138,90797.0,90796.0,0.00016519]
[1765293905375,0.3718138,90797.0,90796.0,0.00016519]
[1765293905668,0.3718138,90797.0,90796.0,0.00216519]
[1765293906268,0.3728138,90797.0,90796.0,0.00016519]
[1765293907065,0.3738138,90797.0,90796.0,0.00016519]
[1765293907368,0.3788138,90797.0,90796.0,0.00016519]
[1765293907965,0.3808138,90797.0,90796.0,0.00016519]
[1765293908561,0.3788138,90797.0,90796.0,0.00016519]
[1765293908871,0.3808138,90797.0,90796.0,0.00016519]
[1765293909368,0.3808138,90797.0,90762.0,0.3608]
[1765293909369,0.011015,90787.0,90775.0,0.0110163]
[1765293909562,0.3698,90797.0,90772.0,0.0110167]
[1765293909754,0.3698,90797.0,90775.0,0.0110164]
[1765293909955,0.3698,90797.0,90762.0,0.3608]
[1765293909956,0.3608,90784.0,90765.0,0.01211935]
[1765293910155,0.0110159,90780.0,90765.0,0.00110175]
[1765293910356,0.00016519,90782.0,90778.0,0.011016]
[1765293910559,0.00016519,90782.0,90780.0,0.0110158]
[1765293910969,0.00016519,90782.0,90779.0,0.0110159]
[1765293911365,0.00316519,90782.0,90779.0,0.0110159]
[1765293911969,0.00016519,90782.0,90779.0,0.0110159]
[1765293912172,0.00316519,90782.0,90779.0,0.0110159]
[1765293912870,0.00316519,90782.0,90778.0,0.3608]
[1765293913573,0.00316519,90782.0,90779.0,0.0110159]
[1765293913770,0.00316519,90782.0,90778.0,0.3608]
[1765293914070,0.00016519,90782.0,90780.0,0.0110157]
[1765293914374,0.00316519,90782.0,90780.0,0.0110157]
[1765293914769,0.00316519,90782.0,90778.0,0.3608]
[1765293914977,0.00316519,90782.0,90779.0,0.0110159]
[1765293916166,0.00316519,90782.0,90778.0,0.3608]
[1765293916367,0.00016519,90782.0,90778.0,0.3608]
[1765293916572,0.00316519,90782.0,90779.0,0.0110159]
[1765293916964,0.00016519,90782.0,90779.0,0.0110159]
[1765293917176,0.00316519,90782.0,90779.0,0.0110159]
[1765293918059,0.00316519,90782.0,90778.0,0.3608]
[1765293918678,0.00316519,90782.0,90780.0,0.0110157]
[1765293921576,0.00316519,90782.0,90780.0,0.0120157]
[1765293922070,0.05879076,90800.0,90797.0,0.0110138]
[1765293922270,0.05879076,90810.0,90809.0,0.0110123]
[1765293922484,0.05879076,90810.0,90800.0,0.19423081]
[1765293922778,0.0110127,90806.0,90801.0,0.0110132]
[1765293923071,0.05879076,90811.0,90799.0,0.3608]
[1765293923278,0.002,90800.0,90799.0,0.3718135]
[1765293923775,0.07280296,90810.0,90807.0,0.0110125]
[1765293924269,0.06179076,90810.0,90807.0,0.0110125]
[1765293924475,0.05879076,90810.0,90807.0,0.0110125]
[1765293925077,0.05879076,90810.0,90804.0,0.0110128]
[1765293925278,0.05879076,90810.0,90799.0,0.3608]
[1765293925471,0.05879076,90811.0,90799.0,0.3608]
[1765293925772,0.00016519,90813.0,90810.0,0.0110122]
[1765293925974,0.00016519,90813.0,90807.0,0.3618]
[1765293926369,0.00016519,90813.0,90810.0,0.0110121]
[1765293927278,0.0110119,90812.0,90807.0,0.3618]
[1765293927466,0.00116519,90813.0,90807.0,0.3618]
[1765293928177,0.00116519,90813.0,90810.0,0.0110121]
[1765293928971,0.00216519,90813.0,90810.0,0.0120121]
[1765293929369,0.00110115,90815.0,90814.0,0.0110117]
[1765293930676,0.00210115,90815.0,90814.0,0.0120117]
[1765293931377,0.00016519,90824.0,90820.0,0.0110109]
[1765293931581,0.00016519,90824.0,90822.0,0.3718106]
[1765293932664,0.00116519,90824.0,90822.0,0.3718106]
[1765293932872,0.00316519,90824.0,90822.0,0.3728106]
[1765293935478,0.00316519,90824.0,90822.0,0.3728107]
[1765293935682,0.01417569,90824.0,90822.0,0.3618]
[1765293936776,0.01417569,90824.0,90822.0,0.001]
[1765293937980,0.00316519,90824.0,90822.0,0.001]
[1765293938185,0.00816519,90824.0,90822.0,0.001]
[1765293938384,0.00816519,90824.0,90822.0,0.0120107]
[1765293942789,0.01585,90828.0,90827.0,0.0110101]
[1765293943090,0.01585,90828.0,90827.0,0.3718101]
[1765293943391,0.00110084,90840.0,90839.0,0.0110087]
[1765293943591,0.00110084,90840.0,90839.0,0.3718087]
[1765293944695,0.00410084,90840.0,90839.0,0.3718087]
[1765293945006,0.00016519,90849.0,90848.0,0.0110076]
[1765293945385,0.00016519,90849.0,90848.0,0.3718076]
[1765293946584,0.00716519,90849.0,90848.0,0.3728076]
[1765293947185,0.00316519,90849.0,90848.0,0.3728076]
[1765293947392,0.00416519,90849.0,90848.0,0.3728076]
[1765293948386,0.00416519,90849.0,90848.0,0.3618]
[1765293952394,0.00110054,90865.0,90864.0,0.0110056]
[1765293952595,0.00110054,90865.0,90864.0,0.3718056]
[1765293953684,0.00510054,90865.0,90864.0,0.7326056]
[1765293954894,0.0001651,90874.0,90873.0,0.0110045]
[1765293955202,0.0981511,90908.0,90890.0,0.0110025]
[1765293955203,0.05879076,90908.0,90890.0,0.0110025]
[1765293955498,0.00022021,90913.0,90903.0,0.3608]
[1765293955698,0.0110001,90911.0,90905.0,0.3608]
[1765293955902,0.0110003,90908.0,90905.0,0.3608]
[1765293956095,0.0109999,90912.0,90905.0,0.3608]
[1765293956399,0.00022021,90913.0,90905.0,0.3608]
[1765293956400,0.0110005,90907.0,90905.0,0.3608]
[1765293956700,0.0110005,90907.0,90897.0,0.000165]
[1765293956701,0.0110015,90898.0,90897.0,0.000165]
[1765293956899,0.3718015,90898.0,90897.0,0.000165]
[1765293957697,0.3608,90907.0,90897.0,0.000165]
[1765293957899,0.0110013,90900.0,90897.0,0.000165]
[1765293958203,0.0110009,90904.0,90897.0,0.000165]
[1765293958597,0.003,90898.0,90897.0,0.001165]
[1765293958993,0.004,90898.0,90897.0,0.001165]
[1765293959198,0.001,90898.0,90897.0,0.001165]
[1765293959595,0.002,90900.0,90898.0,0.0110015]
[1765293959801,0.0110003,90909.0,90898.0,0.0110015]
[1765293960103,0.00022021,90913.0,90907.0,0.3608]
[1765293960495,0.0110013,90900.0,90897.0,0.002165]
[1765293960698,0.0110013,90900.0,90897.0,0.001165]
[1765293960699,0.3608,90898.0,90897.0,0.001165]
[1765293961096,0.0110006,90906.0,90897.0,0.001165]
[1765293961289,0.3608,90911.0,90898.0,0.002]
[1765293961290,0.001,90909.0,90898.0,0.002]
[1765293961493,0.001,90909.0,90905.0,0.3608]
[1765293961891,0.00022021,90913.0,90910.0,0.0110001]
[1765293962394,0.000165,90916.0,90915.0,0.0109995]
[1765293962701,0.000165,90916.0,90908.0,0.3608]
[1765293962894,0.000165,90916.0,90913.0,0.0109996]
[1765293963902,0.001165,90916.0,90913.0,0.0109996]
[1765293964103,0.001165,90916.0,90915.0,0.0109995]
[1765293964406,0.06978506,90958.0,90945.0,0.0109957]
[1765293964702,0.06978506,90958.0,90919.0,0.0109989]
[1765293964703,0.0109944,90957.0,90951.0,0.3608]
[1765293964901,0.3717934,90966.0,90951.0,0.3608]
[1765293965090,0.0109937,90963.0,90951.0,0.371795]
[1765293965295,0.0109937,90963.0,90951.0,0.3608]
[1765293965996,0.007,90957.0,90951.0,0.3618]
[1765293966195,0.007,90957.0,90952.0,0.010995]
[1765293966397,0.007,90957.0,90951.0,0.3618]
[1765293967205,0.01,90957.0,90951.0,0.3618]
[1765293967405,0.003,90957.0,90951.0,0.3618]
[1765293967999,0.011,90957.0,90951.0,0.3618]
[1765293968198,0.011,90957.0,90955.0,0.0109946]
[1765293969198,0.008,90957.0,90955.0,0.0109946]
[1765293969401,0.012,90957.0,90955.0,0.0109946]
[1765293970000,0.012,90957.0,90951.0,0.7226]
[1765293970195,0.008,90957.0,90951.0,0.7226]
[1765293970405,0.008,90957.0,90955.0,0.001]
[1765293970406,0.0119944,90957.0,90955.0,0.001]
[1765293970615,0.0119944,90957.0,90948.0,0.0001649]
[1765293970616,0.0109953,90949.0,90948.0,0.0001649]
[1765293970801,0.3717953,90949.0,90948.0,0.0001649]
[1765293971702,0.7608,90949.0,90913.0,0.3608]
[1765293971900,0.3608,90928.0,90918.0,0.010999]
[1765293972097,0.3608,90928.0,90913.0,0.3608]
[1765293972296,0.3608,90928.0,90922.0,0.0109986]
[1765293972602,0.3608,90928.0,90921.0,0.0109987]
[1765293973203,0.0001649,90934.0,90921.0,0.0109987]
[1765293973406,0.0001649,90934.0,90924.0,0.0109984]
[1765293973600,0.3608,90928.0,90917.0,0.0109992]
[1765293973802,0.3608,90928.0,90916.0,0.0001649]
[1765293974000,0.3608,90928.0,90923.0,0.0109985]
[1765293974216,0.0001649,90934.0,90926.0,0.0109981]
[1765293974610,0.0109973,90933.0,90921.0,0.3608]
[1765293974812,0.0109973,90933.0,90921.0,0.3618]
[1765293975019,0.0109976,90931.0,90921.0,0.3618]
[1765293975315,0.0001649,90934.0,90922.0,0.0109986]
[1765293975706,0.0109986,90922.0,90921.0,0.001]
[1765293975908,0.0110011,90902.0,90893.0,0.3608]
[1765293976206,0.0110023,90892.0,90880.0,0.13234877]
[1765293976408,0.3608,90892.0,90877.0,0.3608]
[1765293976610,0.0110035,90882.0,90877.0,0.3608]
[1765293976813,0.3608,90892.0,90877.0,0.3608]
[1765293977122,0.000165,90889.0,90878.0,0.0110039]
[1765293977303,0.000165,90889.0,90877.0,0.3608]
[1765293977905,0.001,90882.0,90880.0,0.006]
[1765293978112,0.001,90882.0,90881.0,0.0110036]
[1765293978308,0.000165,90889.0,90881.0,0.0110036]
[1765293978617,0.001165,90889.0,90881.0,0.0110036]
[1765293979118,0.001165,90889.0,90880.0,0.006]
[1765293979322,0.001165,90889.0,90877.0,0.3788039]
[1765293979819,0.001165,90889.0,90880.0,0.0110037]
[1765293980317,0.000165,90889.0,90877.0,0.3638]
[1765293980517,0.001,90882.0,90880.0,0.003]
[1765293980720,0.001,90882.0,90881.0,0.0110036]
[1765293980904,0.000165,90889.0,90881.0,0.0110036]
[1765293981106,0.001165,90889.0,90881.0,0.003]
[1765293981507,0.000165,90889.0,90881.0,0.003]
[1765293981713,0.001,90882.0,90881.0,0.0110036]
[1765293981908,0.001,90882.0,90881.0,0.0140036]
[1765293982221,0.001165,90889.0,90881.0,0.0170036]
[1765293982922,0.0110033,90884.0,90881.0,0.006]
[1765293983123,0.0110029,90887.0,90881.0,0.006]
[1765293983521,0.0110034,90883.0,90881.0,0.006]
[1765293983714,0.001,90882.0,90881.0,0.006]
[1765293984321,0.0110034,90883.0,90881.0,0.006]
[1765293984720,0.001,90887.0,90881.0,0.006]
[1765293984925,0.0981511,90917.0,90881.0,0.006]
[1765293984926,0.05879076,90910.0,90886.0,0.011003]
[1765293985220,0.05879076,90916.0,90906.0,0.0110005]
[1765293985416,0.09678242,90918.0,90906.0,0.0110005]
[1765293985916,0.0109997,90914.0,90903.0,0.0111659]
[1765293986422,0.0109995,90915.0,90903.0,0.000165]
[1765293986630,0.3717994,90916.0,90906.0,0.0110004]
[1765293986816,0.0109995,90915.0,90904.0,0.0110008]
[1765293987121,0.0109997,90913.0,90904.0,0.0110008]
[1765293987318,0.011,90911.0,90903.0,0.001165]
[1765293987722,0.011,90911.0,90906.0,0.001]
[1765293987916,0.0110004,90907.0,90906.0,0.001]
[1765293988322,0.3608,90908.0,90906.0,0.001]
[1765293989728,0.001,90913.0,90906.0,0.001]
[1765293989917,0.001,90907.0,90906.0,0.002]
[1765293990517,0.001,90908.0,90906.0,0.002]
[1765293991224,0.3728004,90907.0,90906.0,0.002]
[1765293991428,0.001,90907.0,90906.0,0.002]
[1765293992719,0.0160004,90907.0,90906.0,0.002]
[1765293993325,0.0200004,90907.0,90906.0,0.002]
[1765293994322,0.0200004,90907.0,90906.0,0.001]
[1765293994626,0.0110033,90884.0,90874.0,0.37189023]
[1765293995028,0.3608,90886.0,90874.0,0.36088583]
[1765293995329,0.0110038,90879.0,90874.0,0.36088583]
[1765293995531,0.45087084,90886.0,90874.0,0.36088583]
[1765293995927,0.45087084,90886.0,90880.0,0.0110036]
[1765293996127,0.001,90884.0,90880.0,0.0110036]
[1765293996429,0.001,90884.0,90883.0,0.3718033]
[1765293996629,0.001165,90886.0,90883.0,0.3718033]
[1765293997222,0.001,90884.0,90883.0,0.3718033]
[1765293997430,0.001,90884.0,90883.0,0.3738033]
[1765293997827,0.001165,90886.0,90883.0,0.3758033]
[1765293998233,0.0110031,90885.0,90883.0,0.004]
[1765293999033,0.001165,90886.0,90883.0,0.004]
[1765293999230,0.001165,90886.0,90885.0,0.3608]
[1765293999934,0.000165,90886.0,90885.0,0.3608]
[1765294000428,0.001165,90886.0,90885.0,0.3618]
[1765294000834,0.001165,90886.0,90885.0,0.3638]
[1765294006634,0.05879076,90901.0,90885.0,0.7638]
[1765294006829,0.05879076,90910.0,90900.0,0.7216]
[1765294007028,0.05879076,90911.0,90900.0,0.7216]
[1765294007236,0.05879076,90912.0,90900.0,0.7216]
[1765294007832,0.000165,90913.0,90900.0,0.7216]
[1765294008634,0.008,90907.0,90900.0,0.7226]
[1765294008942,0.000165,90913.0,90900.0,0.7226]
[1765294008943,0.000165,90913.0,90903.0,0.02922391]
[1765294009129,0.05879076,90936.0,90912.0,0.3608]
[1765294009440,0.05879076,90939.0,90932.0,0.3608]
[1765294009635,0.05879076,90938.0,90932.0,0.3608]
[1765294010225,0.05879076,90940.0,90932.0,0.3608]
[1765294010435,0.05879076,90940.0,90926.0,0.000165]
[1765294010732,0.001,90936.0,90926.0,0.000165]
[1765294011238,0.001,90936.0,90930.0,0.3608]
[1765294012143,0.00010918,90944.0,90933.0,0.3608]